bitfinex-derivatives/quotes_ETHF0:USTF0_20251103
["timestamp","ask_amount","ask_price","bid_price","bid_amount"]
[1762205297846,0.50327,3577.2,3577.1,3.18266543]
[1762205298039,0.50326,3577.3,3577.2,2.32407]
[1762205298340,0.50326,3577.3,3577.2,5.53187]
[1762205299647,0.50326,3577.3,3577.2,4.3834]
[1762205301048,0.50326,3577.3,3577.2,5.0286]
[1762205301649,0.50326,3577.3,3577.2,6.53237543]
[1762205302445,0.00242225,3577.5,3577.4,1.67884]
[1762205302653,0.00242225,3577.5,3577.4,3.18261543]
[1762205302846,0.50565225,3577.5,3577.4,1.1756]
[1762205303347,0.50565225,3577.5,3577.4,1.67884]
[1762205303548,0.00242225,3577.5,3577.4,1.67884]
[1762205304053,0.50316,3578.1,3578.0,1.1756]
[1762205304447,0.50316,3578.1,3578.0,1.67876]
[1762205304845,3.2078,3578.7,3577.9,2.76079036]
[1762205305149,0.00256958,3578.7,3578.6,1.67868]
[1762205305340,0.50562958,3578.7,3578.6,3.1836291]
[1762205305546,0.00256958,3578.7,3578.6,3.1836291]
[1762205306053,0.00256958,3578.7,3578.6,1.68075874]
[1762205307350,0.50562958,3578.7,3578.6,1.17767874]
[1762205307957,0.00256958,3578.7,3578.6,1.68075874]
[1762205309455,0.00256958,3578.7,3578.6,3.1836291]
[1762205309858,3.353e-05,3578.7,3578.6,3.1836291]
[1762205310060,3.353e-05,3578.7,3578.6,1.68075874]
[1762205310558,3.353e-05,3578.7,3578.6,3.1836291]
[1762205311155,3.353e-05,3578.7,3578.6,1.68075874]
[1762205311865,2.51376,3581.0,3578.6,1.68075874]
[1762205311866,3.71062,3580.4,3580.3,1.0408]
[1762205312159,0.50278,3580.7,3580.6,1.0408]
[1762205312348,3.2078,3580.9,3580.6,1.0408]
[1762205312552,0.50283,3580.4,3580.2,1.15125]
[1762205312862,0.00319099,3580.4,3580.0,3.2078]
[1762205313154,0.50287,3580.1,3580.0,3.2078]
[1762205313362,0.50287,3580.1,3580.0,4.2486]
[1762205313555,0.00319099,3580.4,3580.3,1.0408]
[1762205314257,0.00319099,3580.4,3580.0,3.71068]
[1762205314760,0.50285,3580.2,3580.1,0.50286]
[1762205315062,0.50285,3580.2,3580.1,1.54366]
[1762205315254,0.00319099,3580.4,3580.3,1.0408]
[1762205316565,0.00319099,3580.4,3580.3,11.7478]
[1762205317058,3.2078,3581.7,3580.3,11.7478]
[1762205317059,0.50261,3581.9,3581.7,0.50264]
[1762205317358,3.2078,3582.1,3582.0,1.0408]
[1762205317762,3.2078,3582.1,3581.6,0.50265]
[1762205317955,0.50263,3581.8,3581.7,1.0408]
[1762205318356,1.62354,3581.7,3581.6,0.00252651]
[1762205318652,0.00252875,3582.1,3581.8,1.0408]
[1762205318859,0.5026,3582.0,3581.8,1.0408]
[1762205319259,0.00252875,3582.1,3582.0,1.6892]
[1762205319462,0.00252875,3582.1,3581.7,3.2078]
[1762205319663,0.50262,3581.9,3581.7,3.71044]
[1762205319965,0.50262,3581.9,3581.8,1.0408]
[1762205320263,0.00252875,3582.1,3581.8,1.0408]
[1762205320264,0.50512875,3582.1,3581.8,1.0408]
[1762205320457,0.5026,3582.0,3581.9,1.54341]
[1762205320967,0.00252875,3582.1,3582.0,1.6892]
[1762205322561,3.2078,3583.2,3582.8,1.0408]
[1762205322763,3.2078,3583.6,3582.6,14.5502]
[1762205322960,3.2078,3583.6,3583.5,1.0408]
[1762205323462,0.00305089,3583.6,3583.5,1.0408]
[1762205323661,0.00305089,3583.6,3583.5,1.54319]
[1762205324268,1.2556,3584.6,3583.3,10.692]
[1762205324269,0.50224,3584.6,3584.4,0.6484]
[1762205324460,0.50226,3584.4,3584.1,0.5023]
[1762205324767,0.50224,3584.6,3584.2,0.50229]
[1762205324966,0.50221,3584.8,3584.6,1.028]
[1762205325164,0.02757027,3584.7,3584.6,1.03052426]
[1762205325964,0.02757027,3584.7,3584.6,0.00252426]
[1762205326167,1.69517027,3584.7,3584.6,0.00252426]
[1762205326359,3.87097027,3584.7,3583.6,1.028]
[1762205326560,0.50231,3584.1,3584.0,1.028]
[1762205327067,0.50236,3583.7,3583.6,4.2358]
[1762205327261,3.2078,3584.6,3583.6,4.23911356]
[1762205327466,4.46342,3584.6,3583.6,3.21111356]
[1762205328269,0.50235,3583.8,3583.7,1.028]
[1762205328564,0.50235,3583.8,3583.6,3.71348356]
[1762205328565,1.032,3583.7,3583.6,0.00331356]
[1762205329069,0.50235,3583.8,3583.6,0.00331356]
[1762205331967,1.032,3583.7,3583.6,0.00331356]
[1762205333067,1.032,3583.7,3582.7,10.676]
[1762205333068,0.50249,3582.8,3582.7,3.2078]
[1762205333968,0.50249,3582.8,3582.7,0.00239084]
[1762205334274,1.53449,3582.8,3582.7,0.00239084]
[1762205338277,3.2078,3582.9,3582.7,1.53289084]
[1762205338478,3.6957,3583.3,3582.8,0.50249]
[1762205338775,0.50243,3583.2,3582.7,3.21019084]
[1762205338980,4.46372,3583.7,3582.8,0.50247]
[1762205339180,0.50247,3583.0,3582.9,0.50247]
[1762205339472,0.50244,3583.2,3582.7,3.21019084]
[1762205340379,0.50244,3583.1,3583.0,1.53045]
[1762205340770,0.50244,3583.1,3583.0,1.028]
[1762205341373,3.2078,3583.7,3583.4,0.5024]
[1762205341785,3.2078,3584.1,3583.6,1.028]
[1762205342087,3.2078,3584.1,3584.0,0.50232]
[1762205342286,0.50225,3584.5,3583.8,0.6128]
[1762205342490,0.26576408,3584.4,3584.3,0.50228]
[1762205342690,0.02757027,3584.7,3583.9,3.2078]
[1762205342986,0.02757027,3584.7,3584.6,1.53023]
[1762205343384,0.02757027,3584.7,3584.6,1.028]
[1762205344686,0.50211,3585.5,3584.7,1.25556]
[1762205344994,0.50212,3585.4,3585.0,3.8206]
[1762205345383,0.50212,3585.4,3585.2,0.50214]
[1762205345586,0.50504516,3585.4,3585.2,0.50214]
[1762205345790,0.50222,3584.7,3584.5,3.2078]
[1762205346288,0.50217,3585.1,3584.5,3.2078]
[1762205346481,3.21072516,3585.4,3584.8,0.5022]
[1762205346684,0.26643185,3585.3,3584.8,0.5022]
[1762205346987,0.50217,3585.1,3584.5,3.2078]
[1762205347593,0.50222,3584.7,3584.5,3.2078]
[1762205347787,0.50222,3584.7,3584.6,1.028]
[1762205348086,0.00292516,3585.4,3585.1,0.50215]
[1762205348294,0.50214,3585.3,3585.1,3.2078]
[1762205348591,0.50215,3585.2,3585.1,3.2078]
[1762205348993,0.00292516,3585.4,3585.1,3.2078]
[1762205349186,0.50215,3585.2,3585.1,3.2078]
[1762205349783,0.00292516,3585.4,3585.1,4.73795]
[1762205349993,0.00292516,3585.4,3585.3,1.53014]
[1762205350190,0.00292516,3585.4,3585.3,1.53280181]
[1762205351594,0.00292516,3585.4,3585.3,1.03066181]
[1762205351787,0.50504516,3585.4,3585.3,1.53280181]
[1762205352187,0.00292516,3585.4,3585.3,1.53280181]
[1762205352792,0.50504516,3585.4,3585.3,1.53280181]
[1762205352989,1.53704516,3585.4,3585.3,0.00266181]
[1762205354097,0.50504516,3585.4,3585.3,0.00266181]
[1762205354292,0.00292516,3585.4,3585.3,1.53280181]
[1762205355592,0.50504516,3585.4,3585.3,1.03066181]
[1762205355891,1.57024516,3585.4,3585.3,0.00266181]
[1762205356296,4.77804516,3585.4,3585.3,0.00266181]
[1762205356498,1.57024516,3585.4,3585.3,0.00266181]
[1762205358294,0.50229,3584.2,3583.8,3.8206]
[1762205358489,3.2078,3584.8,3584.4,0.50225]
[1762205358689,3.2078,3584.8,3584.3,0.50228]
[1762205359099,1.25559,3584.6,3584.1,0.50229]
[1762205359296,1.25559,3584.6,3584.1,0.50589254]
[1762205359696,0.50226,3584.5,3584.3,0.50227]
[1762205359998,0.50227,3584.4,3584.3,0.9688]
[1762205360897,3.2078,3584.8,3584.7,0.9688]
[1762205361199,3.2078,3585.2,3585.1,1.47096]
[1762205361405,0.50504516,3585.4,3585.3,1.47094]
[1762205361600,0.00292516,3585.4,3585.3,1.47094]
[1762205362297,0.00292516,3585.4,3585.3,0.9688]
[1762205362493,0.00292516,3585.4,3585.3,1.47094]
[1762205365198,3.2078,3586.5,3586.1,0.9688]
[1762205365393,0.50201,3586.2,3586.1,0.9688]
[1762205365795,3.2078,3586.5,3585.6,3.7877]
[1762205366000,3.2078,3586.5,3585.6,3.70989]
[1762205366001,0.50208,3585.7,3585.6,3.70989]
[1762205366199,0.504224,3585.7,3585.6,3.2078]
[1762205368301,0.4537,3585.6,3585.0,1.49628696]
[1762205368502,0.50215,3585.2,3585.1,12.02466]
[1762205368698,3.2078,3585.6,3585.1,10.624]
[1762205368902,0.002144,3585.7,3585.4,0.50211]
[1762205369206,0.50212,3585.5,3585.4,0.50212]
[1762205369803,0.50212,3585.5,3585.4,1.40062]
[1762205370111,0.50212,3585.5,3585.2,3.2078]
[1762205370112,0.002144,3585.7,3585.6,1.91559]
[1762205370606,0.3852,3586.0,3585.9,0.50205]
[1762205370803,0.5492,3587.4,3586.7,1.25484]
[1762205371007,0.5492,3587.4,3586.0,2.5102]
[1762205371008,1.05104,3587.4,3587.3,0.50186]
[1762205371207,0.5492,3587.4,3587.3,0.50186]
[1762205371608,0.55179895,3587.4,3587.3,0.5053911]
[1762205372407,0.00259895,3587.4,3587.3,0.5053911]
[1762205372806,0.00259895,3587.4,3587.3,11.1163911]
[1762205374404,0.5492,3588.6,3588.4,0.50169]
[1762205374608,0.5492,3588.6,3588.5,3.2078]
[1762205374911,0.50171,3588.4,3588.1,3.70954]
[1762205375115,0.50172,3588.3,3588.1,3.2078]
[1762205375413,0.50499019,3588.3,3588.1,3.2078]
[1762205375609,0.9177,3588.2,3588.1,3.2078]
[1762205376708,0.50499019,3588.3,3588.1,3.2078]
[1762205377211,0.9177,3588.2,3588.1,3.2078]
[1762205378620,0.00327019,3588.3,3588.1,3.70953]
[1762205379011,0.50499019,3588.3,3588.2,0.50173]
[1762205379311,0.00327019,3588.3,3588.2,0.50173]
[1762205379511,0.50499019,3588.3,3588.2,0.50173]
[1762205381220,0.50173,3588.2,3588.1,3.2078]
[1762205381513,0.50173,3588.2,3588.1,3.70954]
[1762205382119,0.50173,3588.2,3588.1,3.2078]
[1762205382419,0.50499019,3588.3,3588.1,3.2078]
[1762205383118,1.41943,3588.2,3588.1,3.2078]
[1762205384110,0.9177,3588.2,3587.6,3.2078]
[1762205384315,6.97047019,3588.3,3587.3,0.0035311]
[1762205384316,1.96874,3587.4,3587.3,0.0035311]
[1762205385213,1.05104,3587.4,3587.3,0.5053911]
[1762205385410,1.05104,3587.4,3587.3,0.0035311]
[1762205386012,1.94764,3587.4,3587.3,0.0035311]
[1762205389016,0.5492,3587.4,3587.3,0.5053911]
[1762205389222,0.50184,3587.5,3587.4,0.50184]
[1762205389423,0.5155,3587.4,3587.3,0.5053911]
[1762205390213,1.01734,3587.4,3587.3,0.5053911]
[1762205392118,1.91394,3587.4,3587.3,0.0035311]
[1762205396125,5.12174,3587.4,3587.3,3.11e-05]
[1762205399630,0.5155,3587.4,3587.3,0.5018911]
[1762205399925,0.5492,3588.0,3587.9,0.50177]
[1762205400131,0.5492,3588.0,3587.9,2.00058098]
[1762205400829,0.5492,3588.0,3587.7,3.2078]
[1762205400830,0.5155,3588.0,3587.7,5.20284929]
[1762205401025,0.8966,3587.7,3587.3,1.39792353]
[1762205401324,1.01734,3587.4,3587.3,3.11e-05]
[1762205401528,1.21683634,3587.4,3587.3,3.11e-05]
[1762205401733,0.8966,3586.1,3585.9,0.50205]
[1762205401931,0.50205,3586.0,3585.8,3.2078]
[1762205402127,0.5155,3586.2,3585.8,3.2078]
[1762205402325,0.8966,3585.9,3585.8,3.2078]
[1762205402627,0.00324062,3585.9,3585.8,3.21119033]
[1762205402823,4.10764062,3585.9,3585.8,0.00339033]
[1762205403025,0.50219,3584.9,3584.6,1.99504929]
[1762205403231,0.5155,3585.0,3584.8,0.5022]
[1762205403427,0.5155,3585.0,3584.8,3.71]
[1762205403628,0.50218,3585.0,3584.8,3.2078]
[1762205404036,0.50218,3585.0,3584.8,3.20992843]
[1762205404631,3.7233,3585.6,3584.8,3.20992843]
[1762205404832,0.50218,3585.0,3584.8,3.71213843]
[1762205405133,0.50218,3585.0,3584.8,3.20992843]
[1762205405342,0.8966,3584.9,3584.8,0.00212843]
[1762205406531,0.5155,3585.6,3584.8,3.20992843]
[1762205406738,0.5155,3585.6,3585.0,0.50217]
[1762205406932,0.5155,3585.6,3584.8,3.20992843]
[1762205407236,0.50213,3585.4,3584.8,3.20992843]
[1762205407436,0.50214,3585.3,3585.1,0.50216]
[1762205407629,1.0176,3585.6,3585.3,0.50213]
[1762205407932,0.8966,3584.9,3584.8,3.20992843]
[1762205408326,0.5155,3585.0,3584.8,3.71211843]
[1762205409030,0.5155,3585.6,3585.4,0.50211]
[1762205409239,0.00324062,3585.9,3585.8,0.50207]
[1762205409433,0.00324062,3585.9,3585.8,14.26787]
[1762205409631,0.5155,3586.8,3586.6,0.50195]
[1762205409940,1.01743,3586.8,3586.5,3.70976]
[1762205410138,0.5155,3586.8,3586.6,0.50195]
[1762205410631,0.00307724,3586.8,3586.7,0.50194]
[1762205410830,0.00307724,3586.8,3586.6,0.50195]
[1762205411031,0.51857724,3586.8,3586.6,0.50195]
[1762205411633,0.00307724,3586.8,3586.6,0.50195]
[1762205412133,0.50194,3586.7,3586.5,13.7658]
[1762205412330,0.51857724,3586.8,3586.0,3.2078]
[1762205412536,0.51857724,3586.8,3586.2,10.555]
[1762205412537,0.8966,3586.3,3586.2,10.555]
[1762205412737,0.8966,3586.3,3585.9,3.2078]
[1762205412738,0.8966,3586.0,3585.9,3.2078]
[1762205413433,0.5155,3586.1,3585.9,3.70985]
[1762205413633,0.51857724,3586.8,3586.6,0.50195]
[1762205414233,1.02050724,3586.8,3586.6,0.50195]
[1762205414429,0.51857724,3586.8,3586.6,0.50195]
[1762205416240,1.02050724,3586.8,3586.6,0.50195]
[1762205416541,0.50195,3586.6,3586.4,0.50197]
[1762205417238,0.50195,3586.6,3586.3,3.2078]
[1762205417540,0.51857724,3586.8,3586.3,3.2078]
[1762205417734,0.50194,3586.7,3586.3,3.2078]
[1762205417929,0.50195,3586.6,3586.4,0.50198]
[1762205418236,0.50211,3585.5,3585.4,3.2078]
[1762205418438,0.50218,3585.0,3584.8,3.20992843]
[1762205418736,1.4452,3585.4,3584.8,3.20992843]
[1762205419044,1.4452,3585.4,3585.3,0.50214]
[1762205419045,0.5133,3585.4,3585.3,0.50214]
[1762205419231,0.5133,3585.4,3584.8,3.20992843]
[1762205419536,0.50215,3585.2,3585.0,0.50216]
[1762205419736,0.5133,3585.4,3584.8,3.20992843]
[1762205419937,0.5133,3585.4,3585.3,0.50214]
[1762205420138,0.5133,3585.4,3585.0,0.50217]
[1762205420441,0.5133,3585.4,3584.8,3.20992843]
[1762205420442,0.50214,3585.3,3585.2,0.50215]
[1762205420838,0.5133,3585.4,3585.3,0.50214]
[1762205421641,0.50208,3585.7,3585.1,11.7994]
[1762205421830,0.50208,3585.7,3585.5,0.5021]
[1762205422035,0.50207,3585.8,3585.7,0.50208]
[1762205422537,0.50209,3585.6,3585.5,0.50209]
[1762205422934,0.50208,3585.8,3585.6,0.50209]
[1762205423135,0.50207,3585.8,3585.7,0.50208]
[1762205423434,3.2078,3586.4,3586.0,0.50204]
[1762205423633,0.51857724,3586.8,3586.7,0.50194]
[1762205423839,1.02050724,3586.8,3586.7,0.50194]
[1762205424037,0.50195,3586.7,3586.6,0.50195]
[1762205424237,0.50194,3586.7,3586.2,1.49501601]
[1762205424438,0.51857724,3586.8,3586.5,0.50196]
[1762205424638,1.02050724,3586.8,3586.7,0.50194]
[1762205425134,0.50197,3586.6,3586.4,0.50198]
[1762205425342,0.51857724,3586.8,3586.2,1.49501601]
[1762205425540,1.02050724,3586.8,3586.7,0.50194]
[1762205426039,0.50194,3586.7,3586.4,3.2078]
[1762205426240,0.51857724,3586.8,3586.4,3.2078]
[1762205426435,0.51857724,3586.8,3586.7,0.50194]
[1762205426639,1.02050724,3586.8,3586.7,0.50194]
[1762205427440,0.51857724,3586.8,3586.7,0.50194]
[1762205427640,0.00307724,3586.8,3586.7,0.50194]
[1762205428142,0.00307724,3586.8,3586.7,0.70144711]
[1762205428539,3.2078,3588.1,3588.0,0.50176]
[1762205428746,0.50179,3587.9,3587.4,10.535]
[1762205429050,3.2078,3588.1,3587.4,11.7896]
[1762205429249,3.70954,3588.1,3588.0,0.50176]
[1762205429545,3.21072083,3588.1,3588.0,0.50176]
[1762205429744,3.21072083,3588.1,3588.0,0.50381074]
[1762205430242,0.00292083,3588.1,3588.0,11.03681074]
[1762205431639,0.00292083,3588.1,3588.0,0.00205074]
[1762205431847,1.29256083,3588.1,3588.0,0.00205074]
[1762205432039,1.29256083,3588.1,3588.0,0.50381074]
[1762205432040,0.00292083,3588.1,3588.0,0.50381074]
[1762205432245,0.00292083,3588.1,3588.0,0.00205074]
[1762205432447,1.29256083,3588.1,3588.0,0.00205074]
[1762205433146,0.4846,3587.5,3586.9,13.7368]
[1762205433350,0.4846,3587.5,3586.9,3.2078]
[1762205433351,0.5019,3587.0,3586.9,3.2078]
[1762205433552,0.4846,3587.5,3586.9,3.2078]
[1762205433750,0.5019,3587.0,3586.9,3.2078]
[1762205434049,0.5019,3587.0,3586.9,3.2102156]
[1762205434847,0.5019,3587.0,3586.9,0.0024156]
[1762205434848,1.2898,3587.0,3586.9,0.0024156]
[1762205435647,0.50188,3587.2,3586.9,0.0024156]
[1762205435849,0.4846,3587.5,3587.4,0.50184]
[1762205436042,3.2078,3588.6,3587.9,0.50177]
[1762205436341,0.5133,3588.9,3588.7,0.50166]
[1762205436542,1.01494,3588.9,3588.7,0.50166]
[1762205437153,0.025,3589.7,3589.6,0.50154]
[1762205437351,0.02764769,3589.7,3589.6,0.50505397]
[1762205438049,0.02764769,3589.7,3589.6,0.00351397]
[1762205438252,0.02764769,3589.7,3589.6,3.21131397]
[1762205438553,3.2078,3590.2,3589.6,3.21131397]
[1762205438752,3.2078,3590.2,3590.0,0.50147]
[1762205439352,3.2078,3590.2,3589.6,3.21131397]
[1762205439553,0.50149,3590.0,3589.6,3.21131397]
[1762205439753,0.50149,3590.0,3589.6,3.71284397]
[1762205440051,0.50149,3590.0,3589.6,3.21131397]
[1762205440250,3.20989109,3590.2,3589.6,3.21131397]
[1762205440448,3.20989109,3590.2,3590.0,0.50147]
[1762205440850,3.20989109,3590.2,3589.7,0.50151]
[1762205440851,0.50147,3590.1,3589.7,0.50151]
[1762205441150,3.20989109,3590.2,3589.6,3.21131397]
[1762205441151,0.50152,3589.8,3589.6,3.21131397]
[1762205442055,0.50152,3589.8,3589.6,0.00351397]
[1762205443050,0.7879,3589.7,3589.6,0.00351397]
[1762205443549,0.50151,3589.8,3589.6,0.00351397]
[1762205443747,0.50151,3589.8,3589.6,0.50504397]
[1762205443947,0.50151,3589.8,3589.6,0.00351397]
[1762205444850,0.50148,3590.0,3589.6,0.00351397]
[1762205445055,0.50151,3589.8,3589.6,0.00351397]
[1762205445260,0.7879,3589.7,3589.6,0.00351397]
[1762205445961,0.4916,3588.9,3588.8,3.2078]
[1762205446858,0.4916,3588.9,3588.8,3.21045272]
[1762205447057,0.4916,3589.6,3589.3,0.50157]
[1762205447261,0.4916,3589.6,3589.1,0.5016]
[1762205448058,0.50162,3589.0,3588.8,3.21045272]
[1762205448360,0.4916,3588.9,3588.8,3.21045272]
[1762205448957,1.3007,3588.9,3588.8,3.21045272]
[1762205449158,0.4916,3588.9,3588.8,3.71210272]
[1762205449660,0.50157,3589.4,3589.2,0.50158]
[1762205449855,0.50158,3589.3,3589.2,0.50158]
[1762205450055,0.50159,3589.2,3589.0,0.50161]
[1762205450253,0.50159,3589.2,3589.0,0.50162]
[1762205450457,0.4916,3589.6,3589.5,0.50155]
[1762205450758,0.89118163,3589.6,3589.5,0.50155]
[1762205450959,0.38964163,3589.6,3589.5,0.50155]
[1762205454061,0.50149,3589.9,3589.8,0.5015]
[1762205454861,0.50151,3589.8,3589.7,0.50152]
[1762205455060,0.00209109,3590.2,3589.4,3.2078]
[1762205455262,0.50149,3589.9,3589.8,0.50151]
[1762205455463,0.50354109,3590.2,3590.1,0.50147]
[1762205455867,0.50147,3590.1,3589.6,10.497]
[1762205456061,0.50147,3590.1,3590.0,0.50148]
[1762205457172,0.50152,3589.7,3589.6,0.50152]
[1762205457461,0.4916,3589.8,3589.7,0.50152]
[1762205457662,0.99311,3589.8,3589.7,0.50152]
[1762205458063,0.4916,3589.8,3589.4,3.2078]
[1762205458365,0.50152,3589.7,3589.6,0.50152]
[1762205458566,0.99311,3589.8,3589.7,0.50152]
[1762205459365,0.4916,3589.8,3589.7,0.50152]
[1762205460464,0.00209109,3590.2,3589.7,0.2631]
[1762205460672,0.00209109,3590.2,3590.1,3.97237]
[1762205462568,0.4916,3589.8,3589.2,3.2078]
[1762205462869,0.50158,3589.3,3589.2,3.70938]
[1762205463066,0.50158,3589.3,3589.2,3.2078]
[1762205463265,3.6994,3589.8,3589.2,3.2078]
[1762205463470,0.8091,3589.3,3589.2,3.2078]
[1762205463667,1.31068,3589.3,3589.2,3.70939]
[1762205463866,0.50162,3589.0,3588.9,10.486]
[1762205464067,0.50163,3588.9,3588.8,0.00265272]
[1762205464272,1.31073,3588.9,3588.8,0.00265272]
[1762205464672,0.4916,3589.2,3588.8,0.00265272]
[1762205464871,0.8091,3588.9,3588.8,0.00265272]
[1762205465261,1.31084,3588.1,3587.9,1.49579118]
[1762205465461,0.4916,3588.0,3587.5,4.70359118]
[1762205465671,0.5018,3587.7,3587.5,3.70962]
[1762205465872,0.50179,3587.8,3587.6,0.50181]
[1762205466070,0.8091,3587.6,3587.5,3.2078]
[1762205466262,0.8091,3587.6,3587.2,10.335]
[1762205466263,0.8091,3587.3,3587.2,10.335]
[1762205466471,0.8091,3587.3,3587.2,10.33720325]
[1762205466971,1.31096,3587.3,3587.2,0.00220325]
[1762205467168,0.8091,3587.3,3587.2,0.50407325]
[1762205467363,0.8091,3587.3,3587.2,0.00220325]
[1762205468171,4.0169,3587.3,3587.2,0.00220325]
[1762205468770,0.50197,3586.5,3586.4,10.481]
[1762205468967,1.31111,3586.2,3586.1,3.2078]
[1762205469166,0.8091,3586.2,3586.1,3.2078]
[1762205469667,0.4916,3586.8,3586.1,3.70981]
[1762205469975,0.502,3586.3,3586.1,3.21106395]
[1762205471368,0.502,3586.3,3585.2,1.49579118]
[1762205471369,0.8091,3585.3,3585.2,3.2078]
[1762205471575,0.50219,3584.9,3584.7,0.02789673]
[1762205472071,0.8091,3584.8,3584.7,0.02789673]
[1762205472277,0.81155333,3584.8,3584.7,0.03139301]
[1762205472883,0.5023,3584.1,3584.0,3.2078]
[1762205473380,0.50237,3583.7,3583.5,13.6868]
[1762205473575,0.50237,3583.7,3583.5,3.2078]
[1762205473774,0.4916,3584.0,3583.5,3.2106003]
[1762205473979,0.50235,3583.9,3583.5,3.7129903]
[1762205474178,0.50236,3583.7,3583.5,3.2106003]
[1762205474570,0.8091,3583.6,3583.5,3.2106003]
[1762205474778,0.7988,3583.9,3583.8,0.50234]
[1762205475081,0.50237,3583.7,3583.5,3.2106003]
[1762205475681,0.7988,3582.8,3582.7,3.2078]
[1762205475877,0.427,3582.6,3582.3,0.50255]
[1762205476180,0.427,3582.6,3582.1,3.71037]
[1762205476377,0.427,3582.6,3582.4,0.50254]
[1762205476775,0.427,3582.6,3582.4,0.50531575]
[1762205477184,0.7988,3582.5,3582.4,0.00277575]
[1762205477578,3.2078,3582.5,3581.5,4.916]
[1762205477782,3.6348,3581.9,3581.1,3.2078]
[1762205477979,3.6348,3581.9,3581.1,3.71052]
[1762205478283,3.6348,3581.9,3581.2,0.50271]
[1762205478479,1.2258,3581.2,3580.7,3.2078]
[1762205478674,0.7988,3580.8,3580.7,0.00286441]
[1762205478873,0.50287,3580.1,3579.8,3.2078]
[1762205479073,0.427,3580.5,3579.7,0.02793569]
[1762205479074,0.427,3579.8,3579.7,0.02793569]
[1762205479682,0.427,3579.8,3579.7,0.53085569]
[1762205479883,0.427,3579.8,3579.7,0.53420797]
[1762205480386,0.427,3580.5,3580.4,0.50282]
[1762205480882,0.427,3580.5,3580.2,0.50284]
[1762205481079,0.427,3580.5,3579.9,3.2078]
[1762205481080,0.427,3580.5,3580.3,0.50283]
[1762205481482,0.92982,3580.5,3579.9,3.71069]
[1762205481785,3.2078,3580.3,3579.7,0.03128797]
[1762205482185,0.427,3580.5,3580.2,0.50285]
[1762205482692,0.427,3580.5,3580.2,0.50284]
[1762205482991,0.50291,3579.8,3579.7,0.03128797]
[1762205483178,0.427,3579.2,3578.6,3.2078]
[1762205483381,4.1378,3579.2,3578.6,3.2078]
[1762205483578,3.6348,3579.2,3578.6,3.2078]
[1762205483878,3.6348,3579.2,3578.9,0.50303]
[1762205484074,3.6348,3579.2,3578.9,0.00219956]
[1762205484282,0.427,3579.2,3579.0,0.50301]
[1762205484486,3.7107,3579.9,3579.4,0.50296]
[1762205484780,3.7107,3579.9,3578.9,0.00219956]
[1762205484781,3.2078,3579.9,3578.9,0.00219956]
[1762205484984,0.50293,3579.7,3578.9,0.00219956]
[1762205485184,0.50292,3579.8,3578.9,0.00219956]
[1762205485380,0.93,3579.2,3578.9,0.00219956]
[1762205485574,0.93,3579.2,3578.9,0.50522956]
[1762205485782,0.427,3579.2,3579.0,0.50302]
[1762205486082,0.427,3579.2,3578.9,0.00219956]
[1762205486274,0.427,3579.2,3579.0,0.50302]
[1762205487281,3.2078,3579.5,3579.0,0.50302]
[1762205487481,0.427,3580.0,3579.8,0.5029]
[1762205487982,0.427,3580.0,3579.4,3.2078]
[1762205488180,3.2078,3579.9,3579.6,0.50293]
[1762205488384,0.427,3580.0,3579.4,3.2078]
[1762205488685,0.427,3580.0,3579.8,0.50291]
[1762205488988,0.427,3580.0,3579.4,3.2078]
[1762205489185,0.427,3580.0,3579.8,0.5029]
[1762205489382,0.92988,3580.0,3579.4,3.2078]
[1762205489588,0.50295,3579.5,3579.2,0.50299]
[1762205489787,0.4359,3579.2,3579.0,3.2078]
[1762205489988,0.9389,3579.2,3579.0,3.71082]
[1762205490190,1.68424,3580.0,3579.8,0.50291]
[1762205490191,0.427,3580.0,3579.8,0.50291]
[1762205490390,3.6348,3580.0,3579.0,3.2078]
[1762205490594,0.5029,3579.9,3579.6,0.50293]
[1762205490789,0.427,3580.0,3579.8,0.50291]
[1762205490989,0.92988,3580.0,3579.8,0.50291]
[1762205491186,1.1341,3580.0,3579.9,0.50289]
[1762205491387,1.1341,3580.0,3579.5,4.46516]
[1762205491388,1.1341,3580.0,3579.5,3.2078]
[1762205491588,0.50291,3579.8,3579.7,0.50292]
[1762205491789,0.427,3580.0,3579.8,0.5029]
[1762205491984,0.427,3580.0,3579.8,0.50291]
[1762205492185,0.92988,3580.0,3579.8,0.50291]
[1762205492389,0.5029,3579.9,3579.7,0.50292]
[1762205492589,0.50291,3579.8,3579.6,0.50293]
[1762205493091,3.2078,3580.4,3580.2,0.50285]
[1762205493291,3.2078,3580.4,3580.3,0.50284]
[1762205494587,3.71062,3580.4,3580.2,0.50285]
[1762205494893,3.2078,3580.4,3579.7,1.25731]
[1762205495083,3.2078,3580.4,3580.3,0.50284]
[1762205496590,3.9149,3580.4,3579.7,40.8]
[1762205496788,3.2078,3580.4,3580.0,0.50287]
[1762205496988,0.50287,3580.1,3580.0,0.50287]
[1762205497388,0.50285,3580.2,3580.1,0.50286]
[1762205498289,0.50285,3580.2,3579.6,1.25735]
[1762205498496,3.2078,3580.4,3579.5,3.2078]
[1762205498497,0.50287,3580.1,3579.5,3.2078]
[1762205499094,0.4359,3579.8,3579.5,3.2078]
[1762205499292,0.4359,3579.8,3579.7,0.50292]
[1762205500385,1.25735,3579.6,3579.0,3.2078]
[1762205500590,1.21012,3579.0,3578.9,0.00219956]
[1762205500789,1.21012,3579.0,3578.1,3.2078]
[1762205500790,0.4359,3578.4,3578.1,3.2078]
[1762205501194,0.93901,3578.4,3578.2,0.50313]
[1762205501389,1.64611,3578.4,3578.3,0.50312]
[1762205501696,1.143,3578.4,3578.3,0.50312]
[1762205501896,1.64841881,3578.4,3578.3,0.50514967]
[1762205502095,1.64841881,3578.4,3578.3,0.00202967]